[Event "New York Winter Invitational IM-C 2022"]
[Site "New York"]
[Date "2022.01.15"]
[Round "4.2"]
[White "Nakada, Akira"]
[Black "Eckert, Doug"]
[Result "1-0"]
[ECO "A13"]
[WhiteElo "2249"]
[BlackElo "2206"]
[Annotator "ChessBase"]
[PlyCount "75"]
[EventDate "2022.01.11"]
[EventType "tourn"]
[EventCountry "USA"]
[SourceTitle "playchess.com"]
[Source "ChessBase"]
[SourceQuality "1"]
[TimeControl "5400+30"]

1. c4 {[%emt 0:00:06]} e6 {[%emt 0:05:19]} 2. Nc3 {[%emt 0:00:08]} d5 {[%emt 0:00:07]} 3. e3 {[%emt 0:00:05]} Nf6 {[%emt 0:01:26]} 4. Nf3 {[%emt 0:00:05]} Be7 {[%emt 0:03:11]} 5. b3 {[%emt 0:00:06]} O-O {[%emt 0:01:41]} 6. Bb2 {[%emt 0:00:05]} c5 {[%emt 0:00:15]} 7. cxd5 {[%emt 0:00:08]} exd5 {[%emt 0:01:47]} 8. d4 {[%emt 0:00:07]} Nc6 {[%emt 0:01:59]} 9. Bb5 {[%emt 0:00:23]} Bg4 {[%emt 0:11:34]} 10. Bxc6 {[%emt 0:05:26]} bxc6 {[%emt 0:00:07]} 11. dxc5 {[%emt 0:00:08]} Bxc5 {[%emt 0:01:19]} 12. O-O {[%emt 0:00:04]} Rc8 {[%emt 0:03:48]} 13. Rc1 {[%emt 0:01:48]} Bd6 {[%emt 0:02:48]} 14. Ne2 {[%emt 0:07:48]} Re8 {[%emt 0:02:57]} 15. Nf4 {[%emt 0:03:00]} Ne4 {[%emt 0:09:12]} 16. h3 {[%emt 0:02:50]} Bxf3 {[%emt 0:04:35]} 17. Qxf3 {[%emt 0:01:14]} Qh4 {[%emt 0:08:25]} 18. Rfd1 {[%emt 0:04:03]} Ng5 {[%emt 0:08:17]} 19. Qh5 {[%emt 0:01:13]} Qxh5 {[%emt 0:00:06]} 20. Nxh5 {[%emt 0:00:02]} Bf8 {[%emt 0:00:35]} 21. Rd4 {[%emt 0:07:03]} Red8 {[%emt 0:02:48]} 22. Ra4 {[%emt 0:02:33]} c5 {[%emt 0:10:27]} 23. Rxa7 {[%emt 0:01:15]} c4 {[%emt 0:00:16]} 24. Ra4 {[%emt 0:17:51]} cxb3 {[%emt 0:00:44]} 25. Rxc8 {[%emt 0:03:10]} Rxc8 {[%emt 0:00:03]} 26. axb3 {[%emt 0:00:05]} Rc2 {[%emt 0:05:21]} 27. Bd4 {[%emt 0:00:05]} Rc1+ {[%emt 0:03:33]} 28. Kh2 {[%emt 0:00:08]} Rb1 {[%emt 0:00:14]} 29. Ra8 {[%emt 0:00:58]} f6 {[%emt 0:01:12]} 30. Bc5 {[%emt 0:02:37]} Ne6 {[%emt 0:00:19]} 31. Bxf8 {[%emt 0:00:51]} Nxf8 {[%emt 0:00:04]} 32. Nf4 {[%emt 0:00:07]} Kf7 {[%emt 0:01:20]} 33. Nxd5 {[%emt 0:01:33]} Rxb3 {[%emt 0:00:55]} 34. Ra7+ {[%emt 0:00:09]} Kg6 {[%emt 0:02:15]} 35. Ne7+ {[%emt 0:01:47]} Kg5 {[%emt 0:01:24]} 36. f4+ {[%emt 0:00:07]} Kh6 {[%emt 0:01:21]} 37. g4 {[%emt 0:00:05]} Ng6 {[%emt 0:02:53]} 38. Nf5# {[%emt 0:00:09]} 1-0

[Event "New York Winter Invitational IM-C 2022"]
[Site "New York"]
[Date "2022.01.15"]
[Round "4.4"]
[White "Uyanga, Byambaa"]
[Black "Griffith, Kyron"]
[Result "0-1"]
[ECO "B57"]
[WhiteElo "2063"]
[BlackElo "2345"]
[Annotator "ChessBase"]
[PlyCount "104"]
[EventDate "2022.01.11"]
[EventType "tourn"]
[EventCountry "USA"]
[SourceTitle "playchess.com"]
[Source "ChessBase"]
[SourceQuality "1"]
[TimeControl "5400+30"]

1. e4 {[%emt 0:00:30]} c5 {[%emt 0:03:41]} 2. Nf3 {[%emt 0:00:16]} d6 {[%emt 0:00:11]} 3. d4 {[%emt 0:00:06]} cxd4 {[%emt 0:00:03]} 4. Nxd4 {[%emt 0:00:04]} Nf6 {[%emt 0:00:05]} 5. Nc3 {[%emt 0:00:03]} Nc6 {[%emt 0:00:05]} 6. Bc4 {[%emt 0:02:52]} Qb6 {[%emt 0:00:24]} 7. Nb3 {[%emt 0:01:41]} e6 {[%emt 0:00:14]} 8. Be3 {[%emt 0:00:34]} Qc7 {[%emt 0:00:04]} 9. f4 {[%emt 0:03:03]} a6 {[%emt 0:01:53]} 10. a4 {[%emt 0:05:07]} b6 {[%emt 0:02:51]} 11. Qe2 {[%emt 0:11:31]} Bb7 {[%emt 0:03:56]} 12. O-O {[%emt 0:09:27]} Nb4 {[%emt 0:04:20]} 13. Bd3 {[%emt 0:19:19]} Be7 {[%emt 0:02:32]} 14. h3 {[%emt 0:02:42]} O-O {[%emt 0:02:46]} 15. Qf2 {[%emt 0:05:55]} Nd7 {[%emt 0:00:51]} 16. Ne2 {[%emt 0:09:55]} d5 {[%emt 0:21:28]} 17. Ng3 {[%emt 0:06:07]} dxe4 {[%emt 0:01:37]} 18. Nxe4 {[%emt 0:00:22]} Rac8 {[%emt 0:02:51]} 19. Rac1 {[%emt 0:02:36]} Bd5 {[%emt 0:04:17]} 20. Nd4 {[%emt 0:01:18]} Qb7 {[%emt 0:02:47]} 21. Nc3 {[%emt 0:01:43]} Nxd3 {[%emt 0:01:09]} 22. cxd3 {[%emt 0:00:03]} Nc5 {[%emt 0:00:33]} 23. Rcd1 {[%emt 0:02:05]} Bf6 {[%emt 0:01:54]} 24. g4 {[%emt 0:15:11]} Rfd8 {[%emt 0:13:56]} 25. Nde2 {[%emt 0:00:00]} Bb3 {[%emt 0:01:46]} 26. Rd2 {[%emt 0:00:00]} Nxd3 {[%emt 0:02:59]} 27. Qf3 {[%emt 0:00:00]} Qxf3 {[%emt 0:06:10]} 28. Rxf3 {[%emt 0:00:00]} Nc5 {[%emt 0:00:34]} 29. Rxd8+ {[%emt 0:00:00]} Bxd8 {[%emt 0:00:13]} 30. Nd4 {[%emt 0:00:00]} Bc4 {[%emt 0:01:18]} 31. Rf2 {[%emt 0:00:00]} h6 {[%emt 0:03:38]} 32. Nf3 {[%emt 0:00:00]} Bf6 {[%emt 0:01:26]} 33. Ne5 {[%emt 0:00:00]} Bxe5 {[%emt 0:00:50]} 34. fxe5 {[%emt 0:00:00]} Nd3 {[%emt 0:00:03]} 35. Rc2 {[%emt 0:00:00]} Bb3 {[%emt 0:00:12]} 36. Rd2 {[%emt 0:00:13]} Nxe5 {[%emt 0:00:07]} 37. Kf2 {[%emt 0:03:21]} Nc4 {[%emt 0:00:23]} 38. Rd7 {[%emt 0:00:10]} Nxb2 {[%emt 0:00:30]} 39. Ne4 {[%emt 0:01:34]} Bxa4 {[%emt 0:00:14]} 40. Ra7 {[%emt 0:01:13]} Bc6 {[%emt 0:00:58]} 41. Nd6 {[%emt 0:00:15]} Rd8 {[%emt 0:00:01]} 42. Nxf7 {[%emt 0:00:43]} Rf8 {[%emt 0:00:18]} 43. Rxa6 {[%emt 0:00:49]} Rxf7+ {[%emt 0:00:20]} 44. Ke1 {[%emt 0:00:05]} Bb5 {[%emt 0:01:19]} 45. Ra8+ {[%emt 0:01:19]} Rf8 {[%emt 0:00:06]} 46. Rxf8+ {[%emt 0:00:21]} Kxf8 {[%emt 0:00:04]} 47. Bxb6 {[%emt 0:00:03]} Nc4 {[%emt 0:00:15]} 48. Bd4 {[%emt 0:00:13]} e5 {[%emt 0:00:06]} 49. Bc5+ {[%emt 0:00:07]} Kf7 {[%emt 0:00:06]} 50. Kf2 {[%emt 0:00:09]} g6 {[%emt 0:00:54]} 51. Kg3 {[%emt 0:00:15]} Ke6 {[%emt 0:00:22]} 52. h4 {[%emt 0:02:01]} h5 {[%emt 0:00:07]} 0-1

[Event "New York Winter Invitational IM-C 2022"]
[Site "New York"]
[Date "2022.01.15"]
[Round "4.5"]
[White "Paciorkowski, Lev"]
[Black "Zeltsan, Joseph"]
[Result "1-0"]
[ECO "B50"]
[WhiteElo "2335"]
[BlackElo "2325"]
[Annotator "ChessBase"]
[PlyCount "61"]
[EventDate "2022.01.11"]
[EventType "tourn"]
[EventCountry "USA"]
[SourceTitle "playchess.com"]
[Source "ChessBase"]
[SourceQuality "1"]
[TimeControl "5400+30"]

1. e4 {[%emt 0:02:17]} c5 {[%emt 0:00:06]} 2. Nf3 {[%emt 0:00:24]} d6 {[%emt 0:00:02]} 3. Nc3 {[%emt 0:00:09]} Nf6 {[%emt 0:00:45]} 4. h3 {[%emt 0:00:06]} a6 {[%emt 0:00:27]} 5. a4 {[%emt 0:00:05]} e5 {[%emt 0:17:43]} 6. Bc4 {[%emt 0:00:18]} Be7 {[%emt 0:00:20]} 7. d3 {[%emt 0:00:48]} Nc6 {[%emt 0:02:42]} 8. Bg5 {[%emt 0:01:23]} Rb8 {[%emt 0:01:33]} 9. Bxf6 {[%emt 0:01:51]} Bxf6 {[%emt 0:00:55]} 10. Nd5 {[%emt 0:02:37]} b5 {[%emt 0:00:43]} 11. axb5 {[%emt 0:00:21]} axb5 {[%emt 0:00:02]} 12. Ba2 {[%emt 0:00:27]} O-O {[%emt 0:00:47]} 13. O-O {[%emt 0:00:44]} g6 {[%emt 0:06:05]} 14. b4 {[%emt 0:14:06]} Bg7 {[%emt 0:02:09]} 15. bxc5 {[%emt 0:01:19]} dxc5 {[%emt 0:00:09]} 16. Ne3 {[%emt 0:00:26]} Kh8 {[%emt 0:13:38]} 17. Bd5 {[%emt 0:04:00]} Nb4 {[%emt 0:08:31]} 18. Ra7 {[%emt 0:02:43]} Nxd5 {[%emt 0:00:32]} 19. Nxd5 {[%emt 0:00:06]} b4 {[%emt 0:10:21]} 20. Rc7 {[%emt 0:14:31]} Rb5 {[%emt 0:05:22]} 21. Qa1 {[%emt 0:03:32]} Be6 {[%emt 0:13:10]} 22. Qa7 {[%emt 0:00:29]} Bxd5 {[%emt 0:05:58]} 23. exd5 {[%emt 0:09:12]} Qxd5 {[%emt 0:00:42]} 24. Rd7 {[%emt 0:04:49]} Ra5 {[%emt 0:01:14]} 25. Qc7 {[%emt 0:02:49]} Qa2 {[%emt 0:00:43]} 26. Ng5 {[%emt 0:00:25]} Kg8 {[%emt 0:05:15]} 27. Nxf7 {[%emt 0:01:03]} Raa8 {[%emt 0:01:33]} 28. Ng5 {[%emt 0:02:32]} Bh6 {[%emt 0:00:53]} 29. Rxh7 {[%emt 0:00:48]} Rac8 {[%emt 0:00:10]} 30. Rh8+ {[%emt 0:00:17]} Kxh8 {[%emt 0:00:03]} 31. Qh7# {[%emt 0:31:23]} 1-0

[Event "New York Winter Invitational IM-C 2022"]
[Site "New York"]
[Date "2022.01.16"]
[Round "5.3"]
[White "Dukic, Zachary"]
[Black "Uyanga, Byambaa"]
[Result "1-0"]
[ECO "B76"]
[WhiteElo "2140"]
[BlackElo "2063"]
[Annotator "RC"]
[PlyCount "38"]
[EventDate "2022.01.11"]
[EventType "tourn"]
[EventCountry "USA"]
[SourceTitle "playchess.com"]
[Source "ChessBase"]
[SourceQuality "1"]
[TimeControl "5400+30"]

1. e4 {[%emt 0:02:16]} c5 {[%emt 0:00:05]} 2. Nf3 {[%emt 0:00:05]} d6 {[%emt 0:00:03]} 3. d4 {[%emt 0:00:05]} cxd4 {[%emt 0:00:03]} 4. Nxd4 {[%emt 0:00:04]} Nf6 {[%emt 0:00:04]} 5. Nc3 {[%emt 0:00:05]} g6 {[%emt 0:00:04]} 6. Be3 {[%emt 0:00:07]} Bg7 {[%emt 0:00:03]} 7. f3 {[%emt 0:00:06]} O-O {[%emt 0:00:06]} 8. Qd2 {[%emt 0:00:04]} Nc6 {[%emt 0:00:16]} 9. O-O-O {[%emt 0:00:07]} d5 {[%emt 0:02:23]} 10. exd5 {[%emt 0:00:07]} Nxd5 {[%emt 0:00:27]} 11. Nxc6 {[%emt 0:00:07]} bxc6 {[%emt 0:00:07]} 12. Bd4 {[%emt 0:00:05]} e5 {[%emt 0:00:50]} 13. Bc5 {[%emt 0:00:07]} Be6 {[%emt 0:00:41]} 14. Ne4 {[%emt 0:00:10]} Re8 {[%emt 0:00:58]} 15. h4 {[%emt 0:00:07]} h6 {[%emt 0:03:33]} 16. h5 {[%emt 0:00:12]} g5 {[%emt 0:00:09]} 17. g4 {[%emt 0:00:07]} Nf4 {[%emt 0:14:51]} 18. Qd3 {[%emt 1:35:29]} Qd7 19. Qxd7 {[%emt 0:00:00]} Red8 {[%emt 0:00:41]} 1-0

[Event "New York Winter Invitational IM-C 2022"]
[Site "New York"]
[Date "2022.01.16"]
[Round "5.4"]
[White "Eckert, Doug"]
[Black "Yudasin, Leonid"]
[Result "1/2-1/2"]
[ECO "E15"]
[WhiteElo "2206"]
[BlackElo "2465"]
[Annotator "RC"]
[PlyCount "39"]
[EventDate "2022.01.11"]
[EventType "tourn"]
[EventCountry "USA"]
[SourceTitle "playchess.com"]
[Source "ChessBase"]
[SourceQuality "1"]
[TimeControl "5400+30"]

1. d4 {[%emt 0:00:04]} Nf6 {[%emt 0:00:13]} 2. c4 {[%emt 0:00:03]} e6 {[%emt 0:00:08]} 3. Nf3 {[%emt 0:00:07]} b6 {[%emt 0:00:37]} 4. g3 {[%emt 0:00:09]} Ba6 {[%emt 0:00:07]} 5. b3 {[%emt 0:00:37]} d5 {[%emt 0:00:45]} 6. cxd5 {[%emt 0:02:49]} exd5 {[%emt 0:02:10]} 7. Bg2 {[%emt 0:00:58]} Bd6 {[%emt 0:02:11]} 8. O-O {[%emt 0:02:17]} Nbd7 {[%emt 0:06:15]} 9. a3 {[%emt 0:06:35]} O-O {[%emt 0:00:24]} 10. Nc3 {[%emt 0:00:15]} Re8 {[%emt 0:01:20]} 11. Re1 {[%emt 0:03:29]} c6 {[%emt 0:07:05]} 12. Nh4 {[%emt 0:03:31]} g6 {[%emt 0:03:03]} 13. Nf3 {[%emt 0:24:12]} Bb7 {[%emt 0:06:07]} 14. Bg5 {[%emt 0:08:57]} Be7 {[%emt 0:03:22]} 15. e4 {[%emt 0:11:28]} Nxe4 {[%emt 0:10:26]} 16. Nxe4 {[%emt 0:00:11]} dxe4 {[%emt 0:00:07]} 17. Rxe4 {[%emt 0:00:02]} c5 {[%emt 0:00:17]} 18. Bxe7 {[%emt 0:02:18]} Rxe7 {[%emt 0:00:08]} 19. Rxe7 {[%emt 0:00:06]} Qxe7 {[%emt 0:00:19]} 20. dxc5 {[%emt 0:01:49]} 1/2-1/2